fUST/lending_fUST_20250405
["ID","MTS","AMOUNT","RATE_DAILY","PERIOD"]
[357180463,1743864647053,-341.92755854,0.00019726,2]
[357180465,1743864647062,-500.0,0.00019726,2]
[357180467,1743864647072,-500.0,0.00019726,2]
[357180469,1743864647081,-500.0,0.00019726,2]
[357180470,1743864647090,-500.0,0.00019726,2]
[357180471,1743864647100,-500.0,0.00019726,2]
[357180472,1743864647110,-500.0,0.00019726,2]
[357180473,1743864647120,-500.0,0.00019726,2]
[357180474,1743864647129,-500.0,0.00019726,2]
[357180475,1743864647139,-500.0,0.00019726,2]
[357180476,1743864647149,-500.0,0.00019726,2]
[357180477,1743864647159,-500.0,0.00019726,2]
[357180478,1743864647169,-500.0,0.00019726,2]
[357180479,1743864647180,-500.0,0.00019726,2]
[357180480,1743864647190,-500.0,0.00019726,2]
[357180481,1743864647199,-500.0,0.00019726,2]
[357180482,1743864647208,-500.0,0.00019726,2]
[357180483,1743864647218,-443.41520573,0.00019726,2]
[357180484,1743864647227,-500.0,0.00019726,2]
[357180485,1743864647238,-716.64,0.00019726,2]
[357180486,1743864647247,-500.0,0.00019726,2]
[357180487,1743864647257,-500.0,0.00019726,2]
[357180488,1743864647267,-500.0,0.00019726,2]
[357180489,1743864647277,-500.0,0.00019726,2]
[357180490,1743864647286,-500.0,0.00019726,2]
[357180491,1743864647296,-500.0,0.00019726,2]
[357180492,1743864647305,-500.0,0.00019726,2]
[357180493,1743864647315,-500.0,0.00019726,2]
[357180494,1743864647324,-475.98391563,0.00019726,2]
[357180495,1743864647336,-24.01608437,0.00019726,2]
[357180496,1743864647346,-500.0,0.00019726,2]
[357180497,1743864647355,-636.82,0.00019726,2]
[357180498,1743864647365,-500.0,0.00019726,2]
[357180499,1743864647375,-500.0,0.00019726,2]
[357180500,1743864647384,-500.0,0.00019726,2]
[357180501,1743864647393,-500.0,0.00019726,2]
[357180502,1743864647403,-500.0,0.00019726,2]
[357180503,1743864647412,-4130.23,0.00019726,2]
[357180504,1743864647422,-781.04,0.00019726,2]
[357180505,1743864647431,-500.0,0.00019726,2]
[357180506,1743864647441,-500.0,0.00019726,2]
[357180507,1743864647452,-500.0,0.00019726,2]
[357180508,1743864647462,-172.47,0.00019726,2]
[357180509,1743864647472,-500.0,0.00019726,2]
[357180510,1743864647482,-110.44574813,0.00019726,2]
[357180511,1743864647505,-389.55425187,0.00019726,2]
[357180512,1743864647515,-722.62,0.00019726,2]
[357180513,1743864647525,-500.0,0.00019726,2]
[357180514,1743864647534,-564.3,0.00019726,2]
[357180515,1743864647545,-500.0,0.00019726,2]
[357180516,1743864647554,-500.0,0.00019726,2]
[357180517,1743864647563,-2036.13591063,0.00019726,2]
[357180518,1743864647575,-592.92408937,0.00019726,2]
[357180519,1743864647585,-311.67591057,0.00019726,2]
[357180520,1743864647597,-130.31408943,0.00019726,2]
[357180521,1743864647607,-200.06077606,0.00019726,2]
[357180522,1743864647617,-500.0,0.00019726,2]
[357180523,1743864647626,-425.12513451,0.00019726,2]
[357180525,1743865559496,2028.99,0.00023,10]
[357180570,1743865832189,-330.344702,0.00018246,2]
[357180572,1743865832199,-245.62913353,0.00018978,2]
[357180574,1743865832208,-245.62913353,0.00019028,2]
[357180577,1743865832218,-245.62913353,0.00019078,2]
[357180578,1743865832228,-198.11613066,0.00019166,2]
[357180580,1743865832237,-300.0,0.00019177,2]
[357180583,1743865832247,-524.78654095,0.00019178,2]
[357180584,1743865832256,-369.90154394,0.00019178,2]
[357180586,1743865832266,-500.0,0.00019178,2]
[357180588,1743865832275,-500.0,0.00019178,2]
[357180591,1743865832284,-627.06,0.00019178,2]
[357180593,1743865832294,-500.0,0.00019178,2]
[357180594,1743865832304,-500.0,0.00019178,2]
[357180596,1743865832314,-500.0,0.00019178,2]
[357180598,1743865832323,-457.9200189,0.00019178,2]
[357180600,1743865832336,-500.0,0.00019178,2]
[357180603,1743865832350,-500.0,0.00019178,2]
[357180605,1743865832359,-580.0,0.00019178,2]
[357180607,1743865832369,-500.0,0.00019178,2]
[357180609,1743865832379,-500.0,0.00019178,2]
[357180610,1743865832389,-500.0,0.00019178,2]
[357180612,1743865832398,-500.0,0.00019178,2]
[357180614,1743865832407,-611.27,0.00019178,2]
[357180615,1743865832418,-500.0,0.00019178,2]
[357180617,1743865832427,-500.0,0.00019178,2]
[357180618,1743865832436,-560.03,0.00019178,2]
[357180619,1743865832446,-500.0,0.00019178,2]
[357180620,1743865832455,-3613.96,0.00019178,2]
[357180621,1743865832465,-500.0,0.00019178,2]
[357180622,1743865832474,-500.0,0.00019178,2]
[357180623,1743865832484,-500.0,0.00019178,2]
[357180624,1743865832493,-683.41,0.00019178,2]
[357180625,1743865832502,-500.0,0.00019178,2]
[357180626,1743865832512,-500.0,0.00019178,2]
[357180627,1743865832521,-500.0,0.00019178,2]
[357180628,1743865832530,-500.0,0.00019178,2]
[357180629,1743865832539,-508.61,0.00019178,2]
[357180630,1743865832549,-500.0,0.00019178,2]
[357180631,1743865832559,-500.0,0.00019178,2]
[357180632,1743865832568,-738.44,0.00019178,2]
[357180633,1743865832578,-653.13,0.00019178,2]
[357180634,1743865832588,-500.0,0.00019178,2]
[357180635,1743865832597,-500.0,0.00019178,2]
[357180636,1743865832607,-500.0,0.00019178,2]
[357180637,1743865832616,-500.0,0.00019178,2]
[357180638,1743865832626,-290.4197328,0.00019178,2]
[357180639,1743865832635,-500.0,0.00019178,2]
[357180640,1743865832644,-500.0,0.00019178,2]
[357180641,1743865832654,-500.0,0.00019178,2]
[357180642,1743865832663,-158.57,0.00019178,2]
[357180643,1743865832673,-500.0,0.00019178,2]
[357180644,1743865832682,-614.29,0.00019178,2]
[357180645,1743865832692,-2300.43,0.00019178,2]
[357180646,1743865832702,-254.23,0.00019178,2]
[357180647,1743865832712,-500.0,0.00019178,2]
[357180648,1743865832721,-500.0,0.00019178,2]
[357180649,1743865832731,-86.25023617,0.00019178,2]
[357180699,1743865840213,-415.85553014,0.00019178,2]
[357180700,1743865840223,-500.0,0.00019178,2]
[357180701,1743865840233,-500.0,0.00019178,2]
[357180702,1743865840243,-500.0,0.00019178,2]
[357180703,1743865840252,-500.0,0.00019178,2]
[357180704,1743865840261,-500.0,0.00019178,2]
[357180705,1743865840270,-500.0,0.00019178,2]
[357180706,1743865840279,-500.0,0.00019178,2]
[357180707,1743865840288,-500.0,0.00019178,2]
[357180708,1743865840298,-500.0,0.00019178,2]
[357180709,1743865840307,-500.0,0.00019178,2]
[357180710,1743865840316,-500.0,0.00019178,2]
[357180711,1743865840326,-500.0,0.00019178,2]
[357180712,1743865840340,-586.08,0.00019178,2]
[357180713,1743865840349,-500.0,0.00019178,2]
[357180714,1743865840359,-500.0,0.00019178,2]
[357180715,1743865840369,-500.0,0.00019178,2]
[357180716,1743865840379,-500.0,0.00019178,2]
[357180717,1743865840389,-500.0,0.00019178,2]
[357180718,1743865840399,-654.94,0.00019178,2]
[357180719,1743865840409,-503.86053669,0.00019178,2]
[357180720,1743865840418,-5259.26394,0.00019178,2]
[357180721,1743865840430,-10660.73606683,0.00019178,2]
[357180722,1743865840440,-215.16867728,0.00019352,2]
[357180723,1743865840450,-627.06,0.00019452,2]
[357180724,1743865840459,-500.0,0.00019452,2]
[357180725,1743865840468,-500.0,0.00019452,2]
[357180726,1743865840477,-500.0,0.00019452,2]
[357180727,1743865840487,-500.0,0.00019452,2]
[357180728,1743865840496,-2872.35580817,0.00019452,2]
[357180733,1743865842932,-574.8,0.00019178,2]
[357180734,1743865842942,-3343.69,0.00019178,2]
[357180735,1743865842952,-476.08,0.00019452,2]
[357180736,1743865842962,-500.0,0.00019452,2]
[357180737,1743865842971,-500.0,0.00019452,2]
[357180738,1743865842981,-500.0,0.00019452,2]
[357180739,1743865842990,-738.44,0.00019452,2]
[357180740,1743865843001,-653.13,0.00019452,2]
[357180741,1743865843011,-500.0,0.00019452,2]
[357180742,1743865843020,-443.72,0.00019452,2]
[357180743,1743865843029,-500.0,0.00019452,2]
[357180744,1743865843039,-2300.43,0.00019452,2]
[357180745,1743865843049,-500.0,0.00019452,2]
[357180746,1743865843058,-500.0,0.00019452,2]
[357180747,1743865843068,-500.0,0.00019452,2]
[357180748,1743865843078,-500.0,0.00019452,2]
[357180749,1743865843087,-500.0,0.00019452,2]
[357180750,1743865843097,-500.0,0.00019452,2]
[357180752,1743865843107,-521.26722784,0.00019452,2]
[357180754,1743865843116,-500.0,0.00019452,2]
[357180756,1743865843126,-612.04,0.00019452,2]
[357180757,1743865843136,-500.0,0.00019452,2]
[357180758,1743865843145,-500.0,0.00019452,2]
[357180759,1743865843154,-500.0,0.00019452,2]
[357180760,1743865843167,-500.0,0.00019452,2]
[357180761,1743865843184,-500.0,0.00019452,2]
[357180762,1743865843196,-500.0,0.00019452,2]
[357180763,1743865843210,-654.94,0.00019452,2]
[357180764,1743865843219,-574.8,0.00019452,2]
[357180765,1743865843229,-3343.69,0.00019452,2]
[357180766,1743865843240,-164.3,0.00019716,3]
[357180767,1743865843249,-246.45,0.00019716,3]
[357180768,1743865843258,-739.4,0.00019716,3]
[357180769,1743865843268,-500.0,0.00019725,2]
[357180770,1743865843277,-500.0,0.00019725,2]
[357180771,1743865843286,-500.0,0.00019725,2]
[357180772,1743865843296,-500.0,0.00019725,2]
[357180773,1743865843305,-500.0,0.00019725,2]
[357180774,1743865843314,-500.0,0.00019725,2]
[357180775,1743865843323,-500.0,0.00019725,2]
[357180776,1743865843333,-500.0,0.00019725,2]
[357180777,1743865843346,-500.0,0.00019725,2]
[357180778,1743865843356,-500.0,0.00019725,2]
[357180779,1743865843365,-500.0,0.00019725,2]
[357180780,1743865843375,-471.29886023,0.00019725,2]
[357180781,1743865843386,-500.0,0.00019725,2]
[357180783,1743865843395,-500.0,0.00019725,2]
[357180784,1743865843404,-500.0,0.00019725,2]
[357180785,1743865843414,-500.0,0.00019725,2]
[357180786,1743865843427,-500.0,0.00019725,2]
[357180787,1743865843437,-500.0,0.00019725,2]
[357180788,1743865843446,-500.0,0.00019725,2]
[357180789,1743865843455,-500.0,0.00019725,2]
[357180790,1743865843465,-500.0,0.00019725,2]
[357180791,1743865843474,-500.0,0.00019725,2]
[357180792,1743865843484,-296.68388706,0.00019725,2]
[357180793,1743865843493,-500.0,0.00019725,2]
[357180794,1743865843503,-500.0,0.00019725,2]
[357180795,1743865843512,-500.0,0.00019726,2]
[357180796,1743865843531,-500.0,0.00019726,2]
[357180797,1743865843540,-642.05391132,0.00019726,2]
[357180798,1743865843550,-500.0,0.00019726,2]
[357180799,1743865843559,-500.0,0.00019726,2]
[357180800,1743865843569,-738.44,0.00019726,2]
[357180801,1743865843579,-653.13,0.00019726,2]
[357180802,1743865843588,-500.0,0.00019726,2]
[357180803,1743865843599,-500.0,0.00019726,2]
[357180804,1743865843608,-2300.43,0.00019726,2]
[357180805,1743865843617,-500.0,0.00019726,2]
[357180806,1743865843626,-500.0,0.00019726,2]
[357180807,1743865843636,-500.0,0.00019726,2]
[357180808,1743865843646,-500.0,0.00019726,2]
[357180809,1743865843657,-331.186867,0.00019726,2]
[357180840,1743865846081,-500.0,0.00019178,2]
[357180841,1743865846092,-500.0,0.00019452,2]
[357180842,1743865846101,-168.813133,0.00019726,2]
[357180843,1743865846111,-500.0,0.00019726,2]
[357180844,1743865846121,-313.50300163,0.00019726,2]
[357180845,1743865850126,1220.84264962,0.00023,10]
[357180862,1743866958881,156.06129162,0.00023,10]
[357180893,1743867032359,-635.7018944,0.0001805,2]
[357180894,1743867032370,-500.0,0.00018154,2]
[357180895,1743867032382,-85.14075522,0.00018156,2]
[357180901,1743867038005,-269.47327238,0.00018156,2]
[357180902,1743867038017,-165.172351,0.00018633,2]
[357180903,1743867038029,-504.0,0.0001864,2]
[357180904,1743867038042,-500.0,0.0001893,2]
[357180905,1743867038053,-113.31258922,0.00019078,2]
[357180906,1743867038067,-990.31592201,0.00019078,2]
[357180908,1743867038092,-131.48988195,0.00019078,2]
[357180913,1743867040249,-320.17165751,0.00019078,2]
[357180919,1743867043234,-1121.24076289,0.00019078,2]
[357180920,1743867043248,-756.55641856,0.00019078,2]
[357180921,1743867043260,-500.0,0.0001917,2]
[357180922,1743867043272,-300.0,0.00019177,2]
[357180923,1743867043283,-500.0,0.00019178,2]
[357180924,1743867043293,-526.9,0.00019178,2]
[357180925,1743867043304,-500.0,0.00019178,2]
[357180926,1743867043316,-500.0,0.00019178,2]
[357180927,1743867043327,-500.0,0.00019178,2]
[357180928,1743867043337,-500.0,0.00019178,2]
[357180929,1743867043348,-571.49,0.00019178,2]
[357180930,1743867043359,-646.14,0.00019178,2]
[357180931,1743867043369,-454.14,0.00019178,2]
[357180932,1743867043379,-2012.87,0.00019178,2]
[357180933,1743867043391,-500.0,0.00019178,2]
[357180934,1743867043402,-500.0,0.00019178,2]
[357180935,1743867043412,-500.0,0.00019178,2]
[357180936,1743867043423,-500.0,0.00019178,2]
[357180937,1743867043434,-500.0,0.00019178,2]
[357180938,1743867043444,-500.0,0.00019178,2]
[357180939,1743867043455,-500.0,0.00019178,2]
[357180940,1743867043465,-500.0,0.00019178,2]
[357180941,1743867043476,-3065.05,0.00019178,2]
[357180942,1743867043487,-500.0,0.00019178,2]
[357180944,1743867043498,-500.0,0.00019178,2]
[357180945,1743867043508,-600.36,0.00019178,2]
[357180946,1743867043518,-500.0,0.00019178,2]
[357180947,1743867043528,-500.0,0.00019178,2]
[357180948,1743867043539,-500.0,0.00019178,2]
[357180949,1743867043549,-5440.0438393,0.00019178,2]
[357180950,1743867043568,-9514.69940715,0.00019178,2]
[357180951,1743867043579,-500.0,0.00019451,2]
[357180952,1743867043589,-500.0,0.00019452,2]
[357180953,1743867043599,-526.9,0.00019452,2]
[357180954,1743867043609,-500.0,0.00019452,2]
[357180955,1743867043619,-500.0,0.00019452,2]
[357180956,1743867043630,-500.0,0.00019452,2]
[357180957,1743867043640,-500.0,0.00019452,2]
[357180958,1743867043651,-571.49,0.00019452,2]
[357180959,1743867043662,-646.14,0.00019452,2]
[357180960,1743867043675,-2012.87,0.00019452,2]
[357180961,1743867043853,-500.0,0.00019452,2]
[357180962,1743867043867,-500.0,0.00019452,2]
[357180963,1743867043876,-500.0,0.00019452,2]
[357180964,1743867043886,-500.0,0.00019452,2]
[357180965,1743867043896,-632.67486549,0.00019452,2]
[357180966,1743867043906,-500.0,0.00019452,2]
[357180967,1743867043915,-500.0,0.00019452,2]
[357180968,1743867043925,-500.0,0.00019452,2]
[357180969,1743867043935,-3065.05,0.00019452,2]
[357180970,1743867043944,-500.0,0.00019452,2]
[357180971,1743867043953,-500.0,0.00019452,2]
[357180972,1743867043962,-600.36,0.00019452,2]
[357180973,1743867043971,-500.0,0.00019452,2]
[357180974,1743867043981,-500.0,0.00019452,2]
[357180975,1743867043990,-500.0,0.00019452,2]
[357180976,1743867043999,-313.74661982,0.00019725,2]
[357180977,1743867044009,-500.0,0.00019726,2]
[357180978,1743867044018,-500.0,0.00019726,2]
[357180979,1743867044027,-526.9,0.00019726,2]
[357180980,1743867044036,-500.0,0.00019726,2]
[357180981,1743867044045,-500.0,0.00019726,2]
[357180982,1743867044055,-500.0,0.00019726,2]
[357180983,1743867044064,-500.0,0.00019726,2]
[357180984,1743867044073,-571.49,0.00019726,2]
[357180985,1743867044082,-646.14,0.00019726,2]
[357180986,1743867044091,-2012.87,0.00019726,2]
[357180987,1743867044101,-500.0,0.00019726,2]
[357180988,1743867044110,-500.0,0.00019726,2]
[357180989,1743867044130,-500.0,0.00019726,2]
[357180990,1743867044140,-500.0,0.00019726,2]
[357180991,1743867044150,-500.0,0.00019726,2]
[357180992,1743867044160,-600.72,0.00019726,2]
[357180993,1743867044170,-500.0,0.00019726,2]
[357180994,1743867044179,-3065.05,0.00019726,2]
[357180995,1743867044190,-500.0,0.00019726,2]
[357180996,1743867044200,-500.0,0.00019726,2]
[357180997,1743867044210,-600.36,0.00019726,2]
[357180998,1743867044220,-500.0,0.00019726,2]
[357180999,1743867044230,-500.0,0.00019726,2]
[357181000,1743867044239,-534.94,0.00019726,2]
[357181001,1743867044250,-500.0,0.00019745,2]
[357181002,1743867044259,-233.13,0.0002,2]
[357181003,1743867044269,-526.9,0.0002,2]
[357181004,1743867044279,-500.0,0.0002,2]
[357181005,1743867044289,-500.0,0.0002,2]
[357181006,1743867044299,-500.0,0.0002,2]
[357181007,1743867044309,-500.0,0.0002,2]
[357181008,1743867044319,-571.49,0.0002,2]
[357181009,1743867044330,-646.14,0.0002,2]
[357181010,1743867044340,-2012.87,0.0002,2]
[357181011,1743867044350,-500.0,0.0002,2]
[357181012,1743867044360,-500.0,0.0002,2]
[357181013,1743867044369,-500.0,0.0002,2]
[357181014,1743867044379,-500.0,0.0002,2]
[357181015,1743867044389,-500.0,0.0002,2]
[357181016,1743867044399,-500.0,0.0002,2]
[357181017,1743867044408,-3065.05,0.0002,2]
[357181018,1743867044418,-500.0,0.0002,2]
[357181019,1743867044428,-500.0,0.0002,2]
[357181020,1743867044437,-600.36,0.0002,2]
[357181021,1743867044447,-497.47451438,0.0002,2]
[357181022,1743867044457,-500.0,0.0002,2]
[357181023,1743867044466,-155.159207,0.00020064,3]
[357181024,1743867044476,-413.49,0.00020163,3]
[357181025,1743867044486,-245.38969833,0.00020163,3]
[357181026,1743867044577,-16.46030167,0.00020163,3]
[357181027,1743867044587,-785.59,0.00020163,3]
[357181028,1743867044597,-500.0,0.00020172,2]
[357181029,1743867044607,-114.02934727,0.00020172,2]
[357181030,1743867044620,-385.97065273,0.00020172,2]
[357181031,1743867044631,-31.10464399,0.00020172,2]
[357181032,1743867044643,-468.89535601,0.00020172,2]
[357181033,1743867044652,-500.0,0.00020172,2]
[357181034,1743867044662,-500.0,0.00020172,2]
[357181035,1743867044671,-500.0,0.00020172,2]
[357181036,1743867044681,-165.1278887,0.00020172,2]
[357181037,1743867044691,-221.66269561,0.00020172,2]
[357181038,1743867044705,-500.0,0.00020172,2]
[357181039,1743867044718,-500.0,0.00020172,2]
[357181040,1743867044728,-500.0,0.00020172,2]
[357181041,1743867044739,-500.0,0.00020172,2]
[357181042,1743867044750,-885.31405968,0.00020173,3]
[357181053,1743867046110,-500.0,0.00019178,2]
[357181054,1743867046120,-1886.19182463,0.00020173,3]
[357181055,1743867046130,-12544.82475046,0.00020173,2]
[357181056,1743867046142,-5450.0,0.00020173,2]
[357181058,1743867046175,-1412.02229672,0.00020173,2]
[357181066,1743867291151,-151.0,0.00017694,2]
[357181067,1743867301905,-468.52858511,0.00017694,2]
[357181068,1743867313596,-238.08982241,0.00017694,2]
[357181069,1743867322565,-164.9835011,0.00017694,2]
[357181070,1743867336809,-268.0,0.00017694,2]
[357181071,1743867378917,-370.67257768,0.00017694,2]
[357181072,1743867378942,-193.12326162,0.00018054,2]
[357181073,1743867378973,-8.1404212,0.00018377,2]
[357181074,1743867385139,-186.92266443,0.00018194,2]
[357181075,1743867528329,-150.0,0.00018194,2]
[357181076,1743867543575,-164.9835011,0.00018194,2]
[357181077,1743867555942,-196.2234246,0.00018194,2]
[357181078,1743867559630,-153.68,0.00018194,2]
[357181079,1743867571080,-346.32,0.00018012,2]
[357181080,1743867583339,-161.39498292,0.00018012,2]
[357181081,1743867583365,-14.94891708,0.00018257,2]
[357181082,1743867602025,-205.1914997,0.00018257,2]
[357181083,1743867611557,-151.0,0.00018257,2]
[357181084,1743867623848,-205.1914997,0.00018074,2]
[357181085,1743867623870,-308.37217302,0.00018257,2]
[357181086,1743867623897,-24.88632728,0.00018377,2]
[357181087,1743867625032,-176.28884052,0.00018377,2]
[357181088,1743867627777,-500.0,0.00018413,2]
[357181089,1743867629042,-1561.12871598,0.00018413,2]
[357181091,1743867664004,-300.0,0.00018412,2]
[357181092,1743867673990,-182.80942083,0.00018412,2]
[357181093,1743867679004,-300.0,0.00018228,2]
[357181095,1743867686494,-182.80942083,0.00018228,2]
[357181096,1743867686520,-17.19057917,0.00018412,2]
[357181097,1743867686545,-100.0,0.00018412,2]
[357181098,1743867689434,-200.0,0.00018412,2]
[357181099,1743867697657,-192.1327515,0.00018228,2]
[357181110,1743868019136,-164.9835011,0.00017456,2]
[357181111,1743868019159,-268.0,0.00017524,2]
[357181112,1743868019180,-800.0,0.00018046,2]
[357181113,1743868019201,-300.0,0.00018411,2]
[357181114,1743868019222,-500.0,0.00018412,2]
[357181115,1743868019244,-500.0,0.00018412,2]
[357181116,1743868019266,-500.0,0.00018412,2]
[357181117,1743868019288,-500.0,0.00018412,2]
[357181118,1743868019310,-500.0,0.00018412,2]
[357181119,1743868019334,-500.3,0.00018412,2]
[357181120,1743868019356,-500.0,0.00018412,2]
[357181121,1743868019389,-2554.21,0.00018412,2]
[357181122,1743868019412,-538.45,0.00018412,2]
[357181123,1743868019436,-500.0,0.00018412,2]
[357181124,1743868019458,-1677.39,0.00018412,2]
[357181125,1743868019483,-500.0,0.00018412,2]
[357181126,1743868019507,-500.0,0.00018412,2]
[357181127,1743868019531,-153.68,0.00018412,2]
[357181128,1743868019556,-500.0,0.00018412,2]
[357181129,1743868019577,-1270.3463399,0.00018412,2]
[357181175,1743868232505,-902.5681354,0.00017592,2]
[357181176,1743868232515,-489.39552413,0.00018128,2]
[357181177,1743868232525,-500.0,0.00018411,2]
[357181178,1743868232535,-500.0,0.00018411,2]
[357181179,1743868232545,-500.0,0.00018412,2]
[357181180,1743868232555,-500.0,0.00018412,2]
[357181182,1743868232565,-500.0,0.00018412,2]
[357181184,1743868232575,-500.0,0.00018412,2]
[357181186,1743868232584,-500.0,0.00018412,2]
[357181188,1743868232594,-2447.78,0.00018412,2]
[357181190,1743868232604,-500.0,0.00018412,2]
[357181192,1743868232615,-516.01,0.00018412,2]
[357181194,1743868232625,-242.2,0.00018412,2]
[357181196,1743868232635,-1607.5,0.00018412,2]
[357181198,1743868232645,-500.0,0.00018412,2]
[357181200,1743868232655,-500.0,0.00018412,2]
[357181202,1743868232665,-19344.98654962,0.00018413,2]
[357181204,1743868232675,-1852.10285358,0.00018586,2]
[357181206,1743868232685,-500.0,0.00018685,2]
[357181208,1743868232695,-500.0,0.00018685,2]
[357181210,1743868232705,-500.0,0.00018686,2]
[357181212,1743868232727,-273.99,0.00018686,2]
[357181213,1743868232740,-500.0,0.00018686,2]
[357181214,1743868232751,-500.0,0.00018686,2]
[357181215,1743868232762,-500.0,0.00018686,2]
[357181216,1743868232774,-2447.78,0.00018686,2]
[357181217,1743868232785,-500.0,0.00018686,2]
[357181218,1743868232796,-516.01,0.00018686,2]
[357181219,1743868232807,-1607.5,0.00018686,2]
[357181220,1743868232818,-500.0,0.00018686,2]
[357181221,1743868232828,-500.0,0.00018686,2]
[357181222,1743868232840,-16112.1628467,0.00018686,2]
[357181223,1743868232851,-500.0,0.0001881,2]
[357181224,1743868232862,-604.28984002,0.0001886,2]
[357181225,1743868232874,-500.0,0.00018933,2]
[357181226,1743868232885,-500.0,0.00018959,2]
[357181227,1743868232896,-500.0,0.00018959,2]
[357181228,1743868232906,-354.27,0.0001896,2]
[357181229,1743868232915,-500.0,0.0001896,2]
[357181230,1743868232925,-486.61315411,0.0001896,2]
[357181231,1743868232936,-500.0,0.0001896,2]
[357181232,1743868232946,-2447.78,0.0001896,2]
[357181233,1743868232956,-500.0,0.0001896,2]
[357181234,1743868232969,-516.01,0.0001896,2]
[357181235,1743868232979,-1607.5,0.0001896,2]
[357181236,1743868232989,-264.63,0.0001896,2]
[357181237,1743868233000,-500.0,0.0001896,2]
[357181238,1743868233010,-604.28984002,0.00019138,2]
[357181239,1743868233020,-500.0,0.00019153,2]
[357181240,1743868233030,-477.77,0.00019176,2]
[357181241,1743868233041,-500.0,0.00019176,2]
[357181242,1743868233051,-500.0,0.00019176,2]
[357181243,1743868233060,-500.0,0.00019176,2]
[357181244,1743868233071,-500.0,0.00019233,2]
[357181245,1743868233086,-500.0,0.00019233,2]
[357181246,1743868233096,-500.0,0.00019234,2]
[357181247,1743868233106,-500.0,0.00019234,2]
[357181248,1743868233117,-2447.78,0.00019234,2]
[357181249,1743868233127,-500.0,0.00019234,2]
[357181250,1743868233137,-516.01,0.00019234,2]
[357181251,1743868233148,-1607.5,0.00019234,2]
[357181252,1743868233159,-500.0,0.00019234,2]
[357181253,1743868233169,-604.28984002,0.00019417,2]
[357181254,1743868233179,-500.0,0.0001945,2]
[357181255,1743868233190,-290.12,0.0001945,2]
[357181256,1743868233200,-500.0,0.0001945,2]
[357181257,1743868233211,-500.0,0.00019507,2]
[357181258,1743868233221,-500.0,0.00019507,2]
[357181259,1743868233232,-500.0,0.00019508,2]
[357181260,1743868233243,-500.0,0.00019508,2]
[357181261,1743868233253,-2447.78,0.00019508,2]
[357181262,1743868233264,-500.0,0.00019508,2]
[357181263,1743868233274,-516.01,0.00019508,2]
[357181264,1743868233285,-1607.5,0.00019508,2]
[357181265,1743868233296,-500.0,0.00019508,2]
[357181266,1743868233306,-696.69,0.0001969,3]
[357181267,1743868233317,-604.28984002,0.00019695,2]
[357181268,1743868233327,-500.0,0.00019699,2]
[357181269,1743868233338,-500.0,0.00019699,2]
[357181270,1743868233351,-500.0,0.00019699,2]
[357181271,1743868233362,-500.0,0.00019699,2]
[357181272,1743868233372,-486.09154888,0.00019699,2]
[357181273,1743868233382,-500.0,0.00019699,2]